bitfinex-derivatives/quotes_BTCF0:USTF0_20251030
["timestamp","ask_amount","ask_price","bid_price","bid_amount"]
[1761828609790,0.3618,108630.0,108620.0,0.30312019]
[1761828609992,0.3718,108630.0,108620.0,0.30312019]
[1761828610192,0.3748,108630.0,108620.0,0.30312019]
[1761828610492,0.3748,108630.0,108620.0,0.09305322]
[1761828610882,0.61236697,108630.0,108620.0,0.03508322]
[1761828611193,1.34236697,108630.0,108620.0,0.02677953]
[1761828611586,1.34236697,108630.0,108620.0,0.002]
[1761828611587,1.79744697,108630.0,108620.0,0.002]
[1761828611991,1.58738,108630.0,108620.0,0.002]
[1761828612191,1.73744697,108630.0,108620.0,0.002]
[1761828612392,1.77744697,108630.0,108620.0,0.002]
[1761828612589,1.87741757,108630.0,108620.0,0.002]
[1761828612792,1.92741757,108630.0,108620.0,0.002]
[1761828613197,1.7173506,108630.0,108620.0,0.002]
[1761828613382,1.5273506,108630.0,108620.0,0.002]
[1761828613587,1.84741757,108630.0,108620.0,0.002]
[1761828615392,1.51741757,108630.0,108620.0,0.002]
[1761828615594,1.31741757,108630.0,108620.0,0.06066]
[1761828615896,1.85741757,108630.0,108620.0,0.002]
[1761828616594,1.6473506,108630.0,108620.0,0.002]
[1761828616788,1.85741757,108630.0,108620.0,0.002]
[1761828617593,1.6473506,108630.0,108620.0,0.002]
[1761828617990,1.53741757,108630.0,108620.0,0.0158]
[1761828618190,1.80741757,108630.0,108620.0,0.002]
[1761828620199,1.57741757,108630.0,108620.0,0.03802]
[1761828620389,1.74741757,108630.0,108620.0,0.03802]
[1761828620789,1.5373506,108630.0,108620.0,0.06066]
[1761828621052,1.2973506,108630.0,108620.0,0.06066]
[1761828621295,1.0973506,108630.0,108620.0,0.06066]
[1761828621596,0.7422706,108630.0,108620.0,0.06066]
[1761828621996,0.6223,108630.0,108620.0,0.06066]
[1761828622296,0.3748,108630.0,108620.0,0.2955065]
[1761828622594,0.3923,108630.0,108620.0,0.09374322]
[1761828623998,0.38355,108630.0,108620.0,0.09374322]
[1761828624401,0.3748,108630.0,108620.0,0.09374322]
[1761828624593,0.3923,108630.0,108620.0,0.09374322]
[1761828624993,0.3648,108630.0,108620.0,0.09374322]
[1761828625798,0.4023,108630.0,108620.0,0.09374322]
[1761828626105,0.65236697,108630.0,108620.0,0.09374322]
[1761828626401,1.17236697,108630.0,108620.0,0.02676071]
[1761828626996,1.43236697,108630.0,108620.0,0.002]
[1761828627197,1.53233757,108630.0,108620.0,0.02676071]
[1761828627397,1.34233757,108630.0,108620.0,0.02676071]
[1761828627599,1.1322706,108630.0,108620.0,0.02676071]
[1761828627803,1.08233757,108630.0,108620.0,0.02676071]
[1761828628106,1.4022706,108630.0,108620.0,0.02676071]
[1761828628306,1.61233757,108630.0,108620.0,0.02676071]
[1761828628500,1.43233757,108630.0,108620.0,0.02676071]
[1761828628701,1.0522706,108630.0,108620.0,0.002]
[1761828629005,1.26233757,108630.0,108620.0,0.02676071]
[1761828629795,1.0122706,108630.0,108620.0,0.02676071]
[1761828629990,1.87001757,108630.0,108620.0,0.02676071]
[1761828630193,1.86725757,108630.0,108620.0,0.002]
[1761828630393,0.0175,108610.0,108600.0,0.02476071]
[1761828630703,0.0175,108600.0,108590.0,0.30646071]
[1761828631007,0.97836697,108600.0,108590.0,0.30646071]
[1761828631227,1.53987697,108600.0,108590.0,0.30646071]
[1761828631506,1.53987697,108600.0,108590.0,0.2817]
[1761828631706,1.61022198,108600.0,108590.0,0.2817]
[1761828631905,1.61122198,108600.0,108590.0,0.2887]
[1761828632103,1.82128895,108600.0,108590.0,0.2887]
[1761828632307,2.53399835,108600.0,108590.0,0.2887]
[1761828632507,1.93399835,108600.0,108590.0,0.2187]
[1761828632708,1.93399835,108600.0,108590.0,0.1837]
[1761828632709,2.03396895,108600.0,108590.0,0.1837]
[1761828633404,2.02521895,108600.0,108590.0,0.1837]
[1761828633602,2.226215,108600.0,108590.0,0.1837]
[1761828634402,2.01814803,108600.0,108590.0,0.1837]
[1761828634602,1.90543863,108600.0,108590.0,0.1837]
[1761828634808,1.90443863,108600.0,108590.0,0.1767]
[1761828635004,1.90543863,108600.0,108590.0,0.1787]
[1761828635406,2.1255056,108600.0,108590.0,0.1787]
[1761828635607,2.01538803,108600.0,108590.0,0.1787]
[1761828635810,2.50543863,108600.0,108590.0,0.1787]
[1761828636311,1.90543863,108600.0,108590.0,0.1787]
[1761828636616,1.90543863,108600.0,108590.0,0.22396]
[1761828637502,1.90543863,108600.0,108590.0,0.1787]
[1761828639215,1.69537166,108600.0,108590.0,0.22396]
[1761828639413,1.61543863,108600.0,108590.0,0.22396]
[1761828639612,1.17537561,108600.0,108590.0,0.22396]
[1761828639813,0.4647706,108600.0,108590.0,0.22396]
[1761828640009,0.134,108600.0,108590.0,0.45878768]
[1761828640320,0.3608,108610.0,108600.0,0.05864]
[1761828640515,0.4008,108610.0,108600.0,0.05864]
[1761828640707,0.4008,108610.0,108600.0,0.65864]
[1761828641213,0.4008,108610.0,108600.0,0.68340071]
[1761828641519,0.4058,108610.0,108600.0,0.68540071]
[1761828642412,0.4058,108610.0,108600.0,0.08816071]
[1761828642604,0.4058,108610.0,108600.0,0.3313109]
[1761828642806,0.4058,108610.0,108600.0,0.09648322]
[1761828643011,0.4058,108610.0,108600.0,0.3285228]
[1761828643210,0.4058,108610.0,108600.0,0.09372322]
[1761828643520,0.4058,108610.0,108600.0,0.11845606]
[1761828643716,0.4058,108610.0,108600.0,0.09372322]
[1761828644219,0.4058,108610.0,108600.0,0.90379019]
[1761828644220,0.3658,108610.0,108600.0,0.90379019]
[1761828644523,0.3658,108610.0,108600.0,0.39864279]
[1761828644811,0.005,108610.0,108600.0,0.30379019]
[1761828645018,0.3658,108610.0,108600.0,0.09372322]
[1761828645417,0.005,108610.0,108600.0,0.09372322]
[1761828646020,0.3758,108610.0,108600.0,0.09372322]
[1761828646320,0.4678841,108610.0,108600.0,0.08537343]
[1761828647614,0.69795107,108610.0,108600.0,0.08537343]
[1761828647814,1.21795107,108610.0,108600.0,0.08537343]
[1761828648112,1.35795107,108610.0,108600.0,0.06064]
[1761828648814,1.1478841,108610.0,108600.0,0.06064]
[1761828649012,1.35795107,108610.0,108600.0,0.06064]
[1761828649305,1.96556167,108610.0,108600.0,0.01538]
[1761828649510,1.96280167,108610.0,108600.0,0.01538]
[1761828650215,2.07551107,108610.0,108600.0,0.0083782]
[1761828650714,2.28557804,108610.0,108600.0,0.002]
[1761828652112,2.4855741,108610.0,108600.0,0.002]
[1761828652614,2.4755741,108610.0,108590.0,0.03767304]
[1761828652815,0.37079999,108580.0,108540.0,0.06342967]
[1761828653019,0.93166697,108550.0,108540.0,0.07243162]
[1761828653317,1.85654697,108550.0,108540.0,0.07243162]
[1761828653708,1.64648,108550.0,108540.0,0.07243162]
[1761828653917,1.95459861,108550.0,108540.0,0.07243162]
[1761828654316,1.90459861,108550.0,108540.0,0.07243162]
[1761828654517,1.30653164,108550.0,108540.0,0.08243162]
[1761828654722,0.98165164,108550.0,108540.0,0.08443162]
[1761828655021,0.72168104,108550.0,108540.0,0.08443162]
[1761828655519,0.72168104,108550.0,108540.0,0.08243162]
[1761828655520,0.74068104,108550.0,108540.0,0.08243162]
[1761828656221,0.83281604,108550.0,108540.0,0.08243162]
[1761828657315,0.96281604,108550.0,108540.0,0.08243162]
[1761828657622,2.20780301,108550.0,108540.0,0.01338]
[1761828658623,2.31051241,108550.0,108540.0,0.01338]
[1761828658920,2.30777361,108550.0,108540.0,0.01338]
[1761828659517,2.09770664,108550.0,108530.0,0.00158]
[1761828659722,0.57086697,108540.0,108530.0,0.00158]
[1761828659918,1.33086697,108540.0,108530.0,0.04684]
[1761828660115,1.33096274,108540.0,108530.0,0.04684]
[1761828660318,1.12089577,108540.0,108530.0,0.04684]
[1761828660519,1.17096274,108540.0,108530.0,0.04684]
[1761828660818,1.60367214,108540.0,108530.0,0.00258]
[1761828661021,2.11572274,108540.0,108520.0,1e-07]
[1761828661216,0.98793847,108530.0,108520.0,1e-07]
[1761828661411,1.0019515,108530.0,108520.0,0.0422401]
[1761828661615,1.0069115,108530.0,108520.0,0.0422401]
[1761828661829,0.9869115,108530.0,108520.0,0.0422401]
[1761828662323,1.08696555,108530.0,108520.0,0.0422401]
[1761828662716,1.10696555,108530.0,108520.0,0.0422401]
[1761828663218,1.43696555,108530.0,108520.0,0.0422401]
[1761828663410,1.72696555,108530.0,108520.0,0.0422401]
[1761828663618,2.0795793,108530.0,108520.0,0.0422401]
[1761828663819,2.0795793,108530.0,108520.0,0.0212101]
[1761828664124,2.15480258,108530.0,108520.0,0.0212101]
[1761828664521,2.15580258,108530.0,108520.0,0.0212101]
[1761828664713,1.09300555,108530.0,108520.0,0.0422401]
[1761828664915,1.02796555,108530.0,108520.0,0.0422401]
[1761828665320,1.21796555,108530.0,108520.0,0.0422401]
[1761828665920,1.21796555,108530.0,108520.0,0.6422401]
[1761828666227,1.3206087,108530.0,108520.0,1e-07]
[1761828666427,1.7306087,108530.0,108520.0,0.0422401]
[1761828666617,1.16799495,108530.0,108520.0,0.0422401]
[1761828666928,0.95799495,108530.0,108520.0,0.0422401]
[1761828667221,0.97799495,108530.0,108520.0,0.0422401]
[1761828667720,1.12799495,108530.0,108520.0,0.0422401]
[1761828667922,1.10799495,108530.0,108520.0,0.0422401]
[1761828668120,1.10799495,108530.0,108500.0,1.51338]
[1761828668121,2.26597644,108530.0,108500.0,0.01338]
[1761828668426,1.07421375,108510.0,108500.0,0.01338]
[1761828668734,1.68421375,108510.0,108500.0,0.03459]
[1761828668924,1.3116,108510.0,108500.0,0.05562]
[1761828669117,0.8816,108510.0,108500.0,0.05562]
[1761828669318,1.3016,108510.0,108500.0,0.05762]
[1761828669521,1.70521375,108510.0,108500.0,0.03659]
[1761828669822,1.32266839,108510.0,108500.0,0.07123927]
[1761828670014,1.32266839,108510.0,108500.0,0.06923927]
[1761828670424,1.35266839,108510.0,108500.0,0.02699927]
[1761828670620,1.97797375,108510.0,108500.0,0.02699927]
[1761828670815,3.10483562,108510.0,108500.0,0.01361927]
[1761828671018,0.3608,108490.0,108480.0,0.01337368]
[1761828671223,2.32121375,108490.0,108480.0,0.01337368]
[1761828671527,2.32397375,108490.0,108480.0,0.01328]
[1761828671923,2.32397375,108490.0,108460.0,0.01338]
[1761828672123,0.7216,108470.0,108460.0,0.01338]
[1761828672327,1.68228822,108470.0,108460.0,0.01338]
[1761828672531,1.05967447,108470.0,108460.0,0.05562]
[1761828672732,1.41228822,108470.0,108460.0,0.05562]
[1761828672931,1.56228822,108470.0,108460.0,0.05562]
[1761828673133,1.79225882,108470.0,108460.0,0.05662]
[1761828673431,1.08964507,108470.0,108460.0,0.05662]
[1761828673624,1.11964507,108470.0,108460.0,0.05662]
[1761828673824,1.11964507,108470.0,108460.0,0.05562]
[1761828674024,1.07264507,108470.0,108460.0,0.05838]
[1761828674219,0.72267447,108470.0,108460.0,0.05562]
[1761828674424,0.72767447,108470.0,108460.0,0.05562]
[1761828674624,0.72767447,108470.0,108460.0,0.65562]
[1761828675220,0.72467447,108470.0,108460.0,0.65562]
[1761828675426,0.72867447,108470.0,108460.0,0.65838]
[1761828675626,0.72867447,108470.0,108460.0,0.65562]
[1761828675927,0.00907447,108470.0,108460.0,0.65838]
[1761828676524,0.10127697,108470.0,108460.0,0.65838]
[1761828676928,0.10127697,108470.0,108460.0,0.65562]
[1761828677126,0.47207697,108470.0,108460.0,0.65562]
[1761828677537,0.46207697,108470.0,108460.0,0.65562]
[1761828677730,0.10127697,108470.0,108460.0,0.65562]
[1761828678039,0.12127697,108470.0,108460.0,0.05562]
[1761828678226,0.48207697,108470.0,108460.0,0.05562]
[1761828678426,0.46207697,108470.0,108460.0,0.05562]
[1761828678729,0.46207697,108470.0,108460.0,0.05838]
[1761828678931,0.46207697,108470.0,108460.0,0.05562]
[1761828679130,0.10127697,108470.0,108460.0,0.05562]
[1761828679328,0.10127697,108470.0,108460.0,0.05838]
[1761828679531,0.46207697,108470.0,108460.0,0.05838]
[1761828680129,0.46207697,108470.0,108460.0,0.05562]
[1761828681427,0.46207697,108470.0,108460.0,0.05838]
[1761828681628,0.46207697,108470.0,108460.0,0.05562]
[1761828682533,0.46207697,108470.0,108450.0,0.3608]
[1761828682731,0.0922191,108450.0,108440.0,0.03291937]
[1761828682930,0.14322378,108450.0,108440.0,0.07169723]
[1761828683130,0.49583753,108450.0,108440.0,0.07169723]
[1761828683433,0.11322378,108450.0,108440.0,0.07169723]
[1761828683632,0.81482378,108450.0,108440.0,0.05832]
[1761828683830,0.83490781,108450.0,108440.0,0.05832]
[1761828684037,0.81490781,108450.0,108440.0,0.05832]
[1761828684232,0.80790781,108450.0,108440.0,0.05832]
[1761828685332,0.80990781,108450.0,108440.0,0.05832]
[1761828687338,1.18252156,108450.0,108440.0,0.05832]
[1761828687634,0.82990781,108450.0,108440.0,0.03582]
[1761828687841,0.82990781,108450.0,108440.0,0.05832]
[1761828688045,0.44910781,108450.0,108440.0,0.41369375]
[1761828688339,0.44910781,108450.0,108440.0,0.09123937]
[1761828689244,0.46910781,108450.0,108440.0,0.05832]
[1761828691135,1.18252156,108450.0,108440.0,0.03582]
[1761828691335,0.0922364,108430.0,108420.0,1.54619937]
[1761828691536,0.4530364,108430.0,108420.0,1.51328]
[1761828691738,0.86565015,108430.0,108420.0,1.51328]
[1761828692446,0.4930364,108430.0,108420.0,1.51328]
[1761828692639,0.49313217,108430.0,108420.0,1.51328]
[1761828692840,0.45413217,108430.0,108420.0,1.51328]
[1761828693236,0.45413217,108430.0,108420.0,2.14619937]
[1761828693436,0.09333217,108430.0,108420.0,2.14895937]
[1761828693637,0.45413217,108430.0,108420.0,1.54619937]
[1761828693845,0.82674592,108430.0,108420.0,1.51328]
[1761828694045,0.82674592,108430.0,108420.0,0.01328]
[1761828694235,0.49413217,108430.0,108420.0,0.01328]
[1761828694441,0.49413217,108430.0,108420.0,0.0344]
[1761828694442,0.94671652,108430.0,108420.0,0.0344]
[1761828694641,0.94671652,108430.0,108420.0,1.5344]
[1761828694942,0.92671652,108430.0,108420.0,1.51328]
[1761828695240,0.92671652,108430.0,108400.0,0.04629823]
[1761828695241,1.07410277,108430.0,108400.0,0.04629823]
[1761828695446,0.3608,108410.0,108400.0,0.05562886]
[1761828695747,0.3708,108410.0,108400.0,1.55562886]
[1761828696542,7.506e-05,108410.0,108400.0,2.25265056]
[1761828696735,0.4550364,108430.0,108400.0,2.01345056]
[1761828696943,0.4530364,108430.0,108420.0,0.05556]
[1761828699244,0.4540364,108430.0,108420.0,0.05556]
[1761828700055,0.4540364,108430.0,108420.0,0.7505644]
[1761828700056,0.001,108430.0,108420.0,0.7505644]
[1761828700256,0.001,108430.0,108420.0,1.14428377]
[1761828700444,0.001,108430.0,108420.0,1.19391344]
[1761828701156,0.3608,108450.0,108440.0,0.05556]
[1761828701457,0.3608,108450.0,108440.0,0.03821]
[1761828701458,0.74341375,108450.0,108440.0,0.03821]
[1761828701641,1.19341375,108450.0,108440.0,0.03821]
[1761828701840,0.86341375,108450.0,108440.0,0.03821]
[1761828702139,0.4308,108450.0,108440.0,0.08046]
[1761828702338,0.78641375,108450.0,108440.0,0.08046]
[1761828702547,0.5337706,108450.0,108440.0,0.08046]
[1761828702748,0.5357706,108450.0,108440.0,0.08046]
[1761828702949,0.4558,108450.0,108440.0,0.08046]
[1761828703151,0.4358,108450.0,108440.0,0.08046]
[1761828703343,0.4358,108450.0,108440.0,0.08322]
[1761828703546,0.4358,108450.0,108440.0,0.08046]
[1761828703753,0.80841375,108450.0,108440.0,0.03821]
[1761828703951,0.4358,108450.0,108440.0,0.08046]
[1761828704255,0.78841375,108450.0,108440.0,0.08046]
[1761828704641,0.78841375,108450.0,108440.0,0.03821]
[1761828704952,0.4158,108450.0,108440.0,0.05933]
[1761828705145,1.06841375,108450.0,108440.0,0.05933]
[1761828705346,1.18841375,108450.0,108440.0,0.03821]
[1761828705546,1.36841375,108450.0,108440.0,0.03821]
[1761828705741,0.5157706,108450.0,108440.0,0.03821]
[1761828705947,0.4857706,108450.0,108440.0,0.08046]
[1761828706140,0.6157706,108450.0,108440.0,0.08046]
[1761828706347,0.7457706,108450.0,108440.0,0.08046]
[1761828706546,0.4258,108450.0,108440.0,0.08046]
[1761828707047,0.77841375,108450.0,108440.0,0.08046]
[1761828707551,0.79841375,108450.0,108440.0,0.03821]
[1761828707745,0.73841375,108450.0,108440.0,0.0249]
[1761828707941,1.66197186,108450.0,108440.0,0.0249]
[1761828708147,1.31935811,108450.0,108440.0,0.02272494]
[1761828708342,1.89621488,108450.0,108440.0,0.02272494]
[1761828708548,1.54360113,108450.0,108420.0,0.03443]
[1761828708747,0.7216,108430.0,108420.0,0.05556]
[1761828708946,1.03239811,108430.0,108420.0,0.05556]
[1761828709147,1.10463451,108430.0,108420.0,0.05556]
[1761828709551,1.1038364,108430.0,108420.0,0.05556]
[1761828709752,1.1038364,108430.0,108420.0,0.03443]
[1761828709955,1.55942075,108430.0,108420.0,0.03443]
[1761828710154,1.53942075,108430.0,108420.0,0.01441]
[1761828710347,1.53942075,108430.0,108420.0,0.05666]
[1761828710548,1.049597,108430.0,108420.0,0.05666]
[1761828710757,1.38221075,108430.0,108420.0,0.05666]
[1761828711155,1.43221075,108430.0,108420.0,0.05666]
[1761828711350,1.58221075,108430.0,108420.0,0.01441]
[1761828711857,1.53221075,108430.0,108420.0,0.05666]
[1761828712460,1.179597,108430.0,108420.0,0.05666]
[1761828712664,0.938807,108430.0,108420.0,0.05666]
[1761828712860,0.8388364,108430.0,108420.0,0.05666]
[1761828713057,0.8188364,108430.0,108420.0,0.05666]
[1761828713261,0.8388364,108430.0,108420.0,0.05666]
[1761828713461,0.8788364,108430.0,108420.0,0.05666]
[1761828713951,0.8188364,108430.0,108420.0,0.05666]
[1761828716465,0.8388364,108430.0,108420.0,0.05666]
[1761828716656,0.938807,108430.0,108420.0,0.05666]
[1761828717066,0.0922537,108410.0,108400.0,1.56300853]
[1761828717270,0.4630537,108410.0,108400.0,1.51337886]
[1761828718166,0.4630537,108410.0,108400.0,0.05562886]
[1761828718366,0.4530537,108410.0,108400.0,0.05562886]
[1761828718566,0.4540537,108410.0,108400.0,0.05562886]
[1761828718773,0.4540537,108410.0,108400.0,0.05838886]
[1761828719158,0.4540537,108410.0,108400.0,0.05562886]
[1761828719357,0.4540537,108410.0,108400.0,0.05838886]
[1761828719555,0.3608,108420.0,108400.0,0.46063228]
[1761828719758,0.3608,108420.0,108410.0,0.09193585]
[1761828720461,0.3908,108420.0,108410.0,0.04225]
[1761828720669,0.3908,108420.0,108400.0,0.06306471]
[1761828720670,1.54961375,108420.0,108400.0,0.10531471]
[1761828720861,0.71341375,108410.0,108400.0,0.01337886]
[1761828721063,2.307004,108410.0,108400.0,9.886e-05]
[1761828721261,1.707004,108410.0,108380.0,0.01306]
[1761828721570,1.707004,108410.0,108370.0,0.08221177]
[1761828721571,1.07421375,108390.0,108370.0,0.03252592]
[1761828721771,1.03965375,108380.0,108370.0,0.03252592]
[1761828721967,1.61965375,108380.0,108370.0,0.03252592]
[1761828722154,1.47241375,108380.0,108370.0,0.03252592]
[1761828722354,1.973199,108380.0,108370.0,0.03252592]
[1761828722562,1.37058525,108380.0,108370.0,0.03252592]
[1761828722770,1.64965375,108380.0,108370.0,0.03352592]
[1761828722955,1.84043988,108380.0,108370.0,0.03352592]
[1761828723156,0.75782613,108380.0,108370.0,0.03352592]
[1761828723472,0.4108,108380.0,108370.0,0.07725592]
[1761828723776,0.57177161,108380.0,108370.0,0.07725592]
[1761828723978,0.60177161,108380.0,108370.0,0.07725592]
[1761828724267,1.47453161,108380.0,108370.0,0.03252592]
[1761828724458,1.20453161,108380.0,108370.0,0.03252592]
[1761828724773,1.37277161,108380.0,108370.0,0.03252592]
[1761828724974,1.16291682,108380.0,108370.0,0.03252592]
[1761828725162,1.04285903,108380.0,108370.0,0.03252592]
[1761828725470,1.27613843,108380.0,108370.0,0.03252592]
[1761828726068,1.06516682,108380.0,108370.0,0.03252592]
[1761828726270,1.08613843,108380.0,108370.0,0.03252592]
[1761828726472,0.87516682,108380.0,108370.0,0.07625592]
[1761828726772,0.91613843,108380.0,108370.0,0.07625592]
[1761828726978,0.68516682,108380.0,108370.0,0.05459592]
[1761828727166,0.89613843,108380.0,108370.0,0.05459592]
[1761828727471,0.89613843,108380.0,108370.0,0.03252592]
[1761828727472,0.91613843,108380.0,108370.0,0.03252592]
[1761828728066,0.68516682,108380.0,108370.0,0.07625592]
[1761828728566,0.70516682,108380.0,108370.0,0.07625592]
[1761828729269,0.81616783,108380.0,108370.0,0.07625592]
[1761828729474,0.58519622,108380.0,108370.0,0.07625592]
[1761828730971,0.45519622,108380.0,108370.0,0.07625592]
[1761828731177,0.45519622,108380.0,108370.0,0.67625592]
[1761828731376,0.45519622,108380.0,108370.0,0.38227543]
[1761828731377,0.36291682,108380.0,108370.0,0.38227543]
[1761828731567,0.36291682,108380.0,108370.0,0.07625592]
[1761828731775,0.39291682,108380.0,108370.0,0.07625592]
[1761828731976,0.41291682,108380.0,108370.0,0.07625592]
[1761828732173,0.39291682,108380.0,108370.0,0.07625592]
[1761828732373,0.36291682,108380.0,108370.0,0.07625592]
[1761828732569,0.36291682,108380.0,108370.0,0.28722753]
[1761828732766,0.36291682,108380.0,108370.0,0.28998753]
[1761828732967,0.36291682,108380.0,108370.0,0.38227543]
[1761828733273,0.36291682,108380.0,108370.0,0.37951543]
[1761828733473,0.36291682,108380.0,108370.0,0.38227543]
[1761828734080,0.36291682,108380.0,108370.0,0.77130382]
[1761828734081,0.00211682,108380.0,108370.0,0.77130382]
[1761828734276,0.00211682,108380.0,108370.0,1.34307543]
[1761828734578,0.09439622,108380.0,108370.0,1.34307543]
[1761828735181,0.09439622,108380.0,108370.0,0.64802753]
[1761828735481,0.00211682,108380.0,108370.0,0.77330239]
[1761828735665,0.3608,108390.0,108380.0,0.1490594]
[1761828735865,0.3608,108390.0,108380.0,0.05678]
[1761828736285,0.3808,108390.0,108380.0,0.05678]
[1761828736787,0.61377161,108390.0,108380.0,0.0357]
[1761828736972,0.71374221,108390.0,108380.0,0.0357]
[1761828737167,0.71374221,108390.0,108380.0,0.01356]
[1761828737367,0.71574221,108390.0,108380.0,0.01356]
[1761828737575,1.58574221,108390.0,108370.0,0.03252592]
[1761828737769,0.68704,108380.0,108370.0,0.05466592]
[1761828737977,1.03801161,108380.0,108370.0,0.05466592]
[1761828738281,1.03801161,108380.0,108370.0,0.03252592]
[1761828738982,1.03901161,108380.0,108370.0,0.03252592]
[1761828739680,1.03901161,108380.0,108370.0,0.05466592]
[1761828739879,1.03901161,108380.0,108370.0,0.03252592]
[1761828740273,1.03901161,108380.0,108370.0,0.07574592]
[1761828740274,0.80804,108380.0,108370.0,0.07574592]
[1761828740580,0.82804,108380.0,108370.0,0.07574592]
[1761828740982,0.82904,108380.0,108370.0,0.07574592]
[1761828742579,0.5750794,108380.0,108370.0,0.07574592]
[1761828742786,0.4550794,108380.0,108370.0,0.07574592]
[1761828743286,0.4550794,108380.0,108370.0,0.16803362]
[1761828743481,0.4550794,108380.0,108370.0,0.41475219]
[1761828743482,0.3628,108380.0,108370.0,0.41475219]
[1761828743681,0.3608,108390.0,108380.0,0.05678]
[1761828743881,0.3608,108390.0,108380.0,0.18204616]
[1761828744187,0.4530626,108400.0,108390.0,0.04322]
[1761828744891,0.3608,108410.0,108400.0,0.1490421]
[1761828745085,0.3608,108410.0,108400.0,0.30079034]
[1761828745483,0.3608,108410.0,108400.0,0.39305244]
[1761828745984,0.3608,108420.0,108410.0,0.04322]
[1761828746184,0.6868,108430.0,108410.0,0.34644351]
[1761828746489,0.37009179,108440.0,108410.0,0.34644351]
[1761828746490,0.3608,108440.0,108430.0,0.04322]
[1761828746986,0.3908,108440.0,108430.0,0.04322]
[1761828747381,0.3608,108440.0,108430.0,0.04322]
[1761828747581,0.3608,108440.0,108430.0,0.25419161]
[1761828747784,0.3668,108440.0,108430.0,0.94642811]
[1761828747980,0.3668,108440.0,108430.0,0.34918811]
[1761828748183,0.3608,108450.0,108440.0,0.149008]
[1761828748380,0.3608,108450.0,108440.0,0.36273961]
[1761828748776,0.3608,108480.0,108470.0,0.04322]
[1761828749180,0.3708,108480.0,108470.0,0.04322]
[1761828749988,0.3608,108480.0,108470.0,0.04322]
[1761828750178,0.3678,108480.0,108470.0,0.04322]
[1761828750380,0.459994,108480.0,108470.0,0.04322]
[1761828750577,0.72196561,108480.0,108470.0,0.04422]
[1761828750785,0.72196561,108480.0,108470.0,0.25519161]
[1761828750786,0.5709646,108480.0,108470.0,0.25519161]
[1761828750988,0.470994,108480.0,108470.0,0.04422]
[1761828751691,0.540994,108480.0,108470.0,0.04422]
[1761828751882,0.510994,108480.0,108470.0,0.04422]
[1761828752079,0.0922025,108470.0,108460.0,0.01356]
[1761828752391,0.73397411,108470.0,108460.0,0.01356]
[1761828752588,0.4730025,108470.0,108460.0,0.05962]
[1761828752895,0.5230025,108470.0,108460.0,0.05962]
[1761828753192,0.4530025,108470.0,108460.0,0.06062]
[1761828753396,0.4690025,108470.0,108460.0,0.06162]
[1761828753689,0.4890025,108470.0,108460.0,0.06162]
[1761828754294,0.5090025,108470.0,108460.0,0.06162]
[1761828754485,0.1082025,108470.0,108460.0,0.27259161]
[1761828754789,0.016,108470.0,108460.0,0.63615161]
[1761828754993,0.016,108470.0,108460.0,0.42518]
[1761828755183,0.016,108470.0,108460.0,0.42242]
[1761828755692,0.016,108470.0,108460.0,0.06162]
[1761828755888,0.016,108470.0,108460.0,0.42242]
[1761828756096,0.016,108470.0,108460.0,0.06162]
[1761828756294,0.016,108470.0,108460.0,0.42242]
[1761828756796,0.016,108470.0,108460.0,0.63615161]
[1761828756995,0.016,108470.0,108460.0,0.63339161]
[1761828757392,0.016,108470.0,108460.0,0.72560241]
[1761828757695,0.3608,108490.0,108480.0,0.05885]
[1761828757896,0.3608,108490.0,108480.0,0.26982161]
[1761828758101,0.4108,108490.0,108480.0,0.05885]
[1761828758483,0.3608,108490.0,108480.0,0.05885]
[1761828758689,0.3608,108500.0,108490.0,0.04606]
[1761828758896,0.4508,108500.0,108490.0,0.04606]
[1761828759094,1.32806221,108500.0,108480.0,0.001]
[1761828759396,1.32806221,108500.0,108480.0,0.06085]
[1761828759397,0.58377161,108490.0,108480.0,0.06085]
[1761828759597,0.9528,108490.0,108480.0,0.06085]
[1761828759800,0.7728,108490.0,108480.0,0.01479]
[1761828760007,1.08712,108490.0,108480.0,0.03574]
[1761828760201,1.55809161,108490.0,108480.0,0.01279]
[1761828760406,1.52712,108490.0,108480.0,0.01279]
[1761828760608,1.85006221,108490.0,108480.0,0.01479]
[1761828760801,1.89006221,108490.0,108480.0,0.01479]
[1761828761206,1.62706221,108490.0,108480.0,0.01579]
[1761828761710,1.87706221,108490.0,108480.0,0.01579]
[1761828761911,1.87006221,108490.0,108480.0,0.002]
[1761828762214,1.86506221,108490.0,108480.0,0.001]
[1761828762417,1.86506221,108490.0,108480.0,0.01379]
[1761828762712,1.89506221,108490.0,108480.0,0.01379]
[1761828762901,1.6840906,108490.0,108480.0,0.01379]
[1761828763301,1.4040906,108490.0,108480.0,0.05985]
[1761828763501,1.2240906,108490.0,108480.0,0.05985]
[1761828764017,1.91506221,108490.0,108480.0,0.01379]
[1761828764313,1.94506221,108490.0,108480.0,0.01379]
[1761828764510,1.7340906,108490.0,108480.0,0.05985]
[1761828765008,1.3940906,108490.0,108480.0,0.01379]
[1761828765315,1.94506221,108490.0,108480.0,0.01379]
[1761828765607,1.1340906,108490.0,108480.0,0.01379]
[1761828765811,1.71506221,108490.0,108480.0,0.01379]
[1761828766717,1.5040906,108490.0,108480.0,0.01379]
[1761828767010,1.5240906,108490.0,108480.0,0.01379]
[1761828767213,1.95506221,108490.0,108480.0,0.01379]
[1761828767410,1.92506221,108490.0,108480.0,0.01379]
[1761828768008,1.7140906,108490.0,108480.0,0.05985]
[1761828768220,1.3440906,108490.0,108480.0,0.05985]
[1761828768902,1.3340906,108490.0,108480.0,0.03674]
[1761828769116,1.4840906,108490.0,108480.0,0.03674]
[1761828769414,1.3640906,108490.0,108480.0,0.05985]
[1761828770113,1.6240906,108490.0,108480.0,0.01379]
[1761828770321,1.83506221,108490.0,108480.0,0.01379]
[1761828770912,2.43782221,108490.0,108460.0,0.05962]
[1761828771111,0.3608,108470.0,108460.0,0.05962]
[1761828771414,0.4508,108470.0,108460.0,0.05962]
[1761828772200,0.5507706,108470.0,108460.0,0.05962]
[1761828772406,0.4208,108470.0,108460.0,0.06062]
[1761828772608,0.04,108470.0,108460.0,0.27159161]
[1761828772905,0.3608,108480.0,108470.0,0.04606]
[1761828773107,0.3608,108480.0,108470.0,0.25703161]
[1761828773108,0.4908,108480.0,108470.0,0.25703161]
[1761828773709,0.68812,108490.0,108480.0,0.05885]